bitfinex-derivatives/quotes_BTCF0:USTF0_20210109
["timestamp","ask_amount","ask_price","bid_price","bid_amount"]
[1610169644108,0.54126829,39862.0,39861.0,0.00023486]
[1610169644309,1.08109814,39862.0,39861.0,0.00023486]
[1610169644509,0.54126829,39862.0,39861.0,0.00023486]
[1610169644710,1.43755147,39862.0,39861.0,0.00023486]
[1610169645812,2.09768552,39862.0,39861.0,0.00023486]
[1610169647812,2.08548552,39862.0,39861.0,0.00023486]
[1610169651018,2.07358552,39862.0,39861.0,0.00023486]
[1610169653921,2.8239834,39862.0,39861.0,0.00023486]
[1610169654220,2.8112834,39862.0,39861.0,0.00023486]
[1610169654722,2.06088552,39862.0,39861.0,0.00023486]
[1610169657523,2.79776638,39862.0,39861.0,0.00023486]
[1610169658124,5.70806638,39862.0,39861.0,0.00023486]
[1610169658325,5.70806638,39862.0,39860.0,0.13632608]
[1610169658524,6.26003955,39862.0,39860.0,0.13632608]
[1610169658926,3.70221925,39861.0,39860.0,0.13632608]
[1610169659131,3.70221925,39861.0,39842.0,3.7557]
[1610169659326,3.70221925,39861.0,39854.0,0.13632608]
[1610169659526,0.83721023,39858.0,39854.0,0.13632608]
[1610169659728,3.3863,39855.0,39854.0,0.13632608]
[1610169659927,7.08407215,39855.0,39824.0,0.5]
[1610169660327,0.00313372,39836.0,39825.0,0.5]
[1610169660526,0.00313372,39836.0,39825.0,0.01542162]
[1610169660729,3.5312,39827.0,39826.0,0.51542216]
[1610169660929,3.62561,39827.0,39826.0,0.51542216]
[1610169661329,3.62561,39827.0,39826.0,0.13656107]
[1610169662131,0.09441,39827.0,39826.0,0.13656107]
[1610169663732,0.08261,39827.0,39826.0,0.15174801]
[1610169664734,0.08261,39827.0,39826.0,0.15151302]
[1610169664933,0.08261,39827.0,39826.0,0.15174802]
[1610169665133,3.98301,39827.0,39826.0,0.15174802]
[1610169665332,0.08261,39827.0,39826.0,0.15174802]
[1610169666033,3.4026,39835.0,39826.0,0.15174802]
[1610169666635,3.4026,39835.0,39827.0,0.01542239]
[1610169666837,3.3908,39835.0,39827.0,0.01542239]
[1610169667034,3.3908,39835.0,39827.0,0.000235]
[1610169667236,3.39391426,39835.0,39827.0,0.000235]
[1610169667435,3.39391426,39835.0,39826.0,0.13632608]
[1610169667436,3.39391426,39835.0,39834.0,0.13632608]
[1610169667635,3.3908,39835.0,39834.0,0.13632608]
[1610169667836,3.3908,39835.0,39834.0,0.13656108]
[1610169669441,3.52712608,39835.0,39834.0,0.13656108]
[1610169669839,3.51532608,39835.0,39834.0,0.13656108]
[1610169672942,3.50352608,39835.0,39834.0,0.13656108]
[1610169676146,3.49162608,39835.0,39834.0,0.13656108]
[1610169679151,3.47982608,39835.0,39834.0,0.13656108]
[1610169679952,3.47982608,39835.0,39834.0,0.000235]
[1610169680555,4.37649702,39835.0,39815.0,0.00023415]
[1610169680753,1.03299702,39835.0,39802.0,0.60419]
[1610169680954,4.067,39817.0,39816.0,0.00023418]
[1610169681153,4.14645,39817.0,39816.0,0.00023418]
[1610169681354,4.14645,39817.0,39803.0,0.01507981]
[1610169681553,4.28277608,39817.0,39816.0,0.13656026]
[1610169681753,4.28277608,39817.0,39816.0,0.13632608]
[1610169682154,4.27097608,39817.0,39816.0,0.13632608]
[1610169682357,4.27097608,39817.0,39816.0,0.13656027]
[1610169682554,0.21577608,39817.0,39816.0,0.13656027]
[1610169683553,0.73327608,39817.0,39816.0,0.13632608]
[1610169684955,0.73327608,39817.0,39816.0,0.13656031]
[1610169685155,0.21577608,39817.0,39816.0,0.13656031]
[1610169685354,0.20387608,39817.0,39816.0,0.13656031]
[1610169685556,0.20387608,39817.0,39816.0,0.13632608]
[1610169685956,0.06755,39817.0,39816.0,0.13656031]
[1610169686155,0.00306773,39820.0,39816.0,0.13656031]
[1610169686356,0.00306744,39821.0,39816.0,0.13656031]
[1610169686556,0.00306744,39821.0,39817.0,0.00023419]
[1610169686757,0.00306917,39824.0,39817.0,0.00023419]
[1610169687356,0.00307043,39825.0,39817.0,0.00023419]
[1610169687558,0.00307043,39825.0,39824.0,0.13632608]
[1610169687756,0.00307754,39827.0,39824.0,0.13632608]
[1610169688056,0.00307754,39827.0,39824.0,0.13656025]
[1610169688457,0.41930166,39829.0,39825.0,0.00023417]
[1610169688658,0.41930166,39829.0,39824.0,0.13632608]
[1610169689060,0.85770166,39829.0,39824.0,0.13632608]
[1610169689259,0.41930166,39829.0,39824.0,0.13632608]
[1610169689462,3.8336,39825.0,39824.0,0.13632608]
[1610169689661,3.92111,39825.0,39824.0,0.13632608]
[1610169689862,3.92111,39825.0,39824.0,0.13656025]
[1610169691666,3.92011,39825.0,39824.0,0.13656025]
[1610169693670,4.05643608,39825.0,39824.0,0.13656025]
[1610169695673,4.04173608,39825.0,39824.0,0.13656025]
[1610169698675,4.02983608,39825.0,39824.0,0.13656025]
[1610169699777,4.02983608,39825.0,39824.0,0.00023417]
[1610169700078,4.02983608,39825.0,39806.0,0.01508139]
[1610169700681,0.01479591,39824.0,39806.0,0.01508139]
[1610169701079,0.01479328,39823.0,39806.0,0.01508139]
[1610169701579,0.01479328,39823.0,39817.0,0.13632608]
[1610169701780,0.00299328,39823.0,39817.0,0.13632608]
[1610169701983,0.00299328,39823.0,39818.0,0.0002342]
[1610169703580,0.13632608,39819.0,39818.0,0.0002342]
[1610169704882,0.12452608,39819.0,39818.0,0.0002342]
[1610169707687,0.12452608,39819.0,39818.0,0.01508104]
[1610169707886,0.11282608,39819.0,39818.0,0.01508104]
[1610169710988,0.10082608,39819.0,39818.0,0.01508104]
[1610169713993,0.08932608,39819.0,39818.0,0.01508104]
[1610169716396,0.9892408,39819.0,39818.0,0.01508104]
[1610169717197,0.9771408,39819.0,39818.0,0.01508104]
[1610169718703,1.42059452,39819.0,39818.0,0.01508104]
[1610169719700,4.58079452,39819.0,39818.0,0.01508104]
[1610169720101,5.2311791,39819.0,39818.0,0.01508104]
[1610169720300,2.0590791,39819.0,39818.0,0.01508104]
[1610169720503,1.40869452,39819.0,39818.0,0.01508104]
[1610169721303,2.05922573,39819.0,39818.0,0.01508104]
[1610169722802,2.58992573,39819.0,39818.0,0.01508104]
[1610169723402,3.316101,39819.0,39818.0,0.01508104]
[1610169723603,3.316101,39819.0,39807.0,0.01508486]
[1610169723805,1.02709215,39808.0,39804.0,0.03541981]
[1610169724003,1.02709215,39808.0,39803.0,0.13632608]
[1610169724404,1.02709215,39808.0,39805.0,0.01508612]
[1610169724604,1.02709215,39808.0,39804.0,0.01508684]
[1610169724803,0.44119767,39806.0,39803.0,0.17175228]
[1610169725204,0.52919621,39807.0,39805.0,0.01508682]
[1610169725404,0.52919621,39807.0,39804.0,0.01508721]
[1610169725405,0.44080942,39806.0,39804.0,0.01508721]
[1610169725603,0.96975135,39806.0,39803.0,0.13632608]
[1610169725903,0.96975135,39806.0,39805.0,0.01508702]
[1610169726105,0.8972482,39807.0,39804.0,0.01508635]
[1610169726306,0.44088983,39806.0,39804.0,0.01508635]
[1610169726503,0.42908983,39806.0,39805.0,0.01508591]
[1610169726903,4.27448983,39806.0,39804.0,0.01508705]
[1610169727105,4.80296202,39806.0,39804.0,0.01508705]
[1610169727303,4.80296202,39806.0,39805.0,0.01508793]
[1610169727505,6.36920388,39806.0,39805.0,0.01508793]
[1610169727707,6.50552996,39806.0,39796.0,0.00023432]
[1610169727906,3.2294,39797.0,39796.0,0.00023432]
[1610169728105,3.2294,39797.0,39787.0,0.13632608]
[1610169728106,3.3507,39797.0,39787.0,0.13632608]
[1610169728306,0.1213,39797.0,39796.0,0.00023434]
[1610169728507,0.1213,39797.0,39788.0,0.00023436]
[1610169728706,4.1444,39790.0,39787.0,0.13632608]
[1610169729107,4.1444,39790.0,39788.0,0.00023436]
[1610169729506,4.1325,39790.0,39788.0,0.00023436]
[1610169729707,0.13632608,39789.0,39788.0,0.00023436]
[1610169729910,0.13632608,39789.0,39787.0,0.13632608]
[1610169730109,0.13632608,39789.0,39788.0,0.00023436]
[1610169730709,0.13632608,39789.0,39788.0,0.00023437]
[1610169731612,4.1325,39790.0,39788.0,0.00023437]
[1610169731813,0.52608328,39794.0,39788.0,0.00023437]
[1610169732216,0.64789508,39797.0,39794.0,3.0796]
[1610169732614,0.1095,39797.0,39794.0,3.0796]
[1610169732814,0.1095,39797.0,39795.0,0.00023433]
[1610169733015,0.1095,39797.0,39795.0,0.50023431]
[1610169733216,0.64395764,39805.0,39795.0,0.50023431]
[1610169733217,0.52741404,39805.0,39796.0,0.5]
[1610169733415,1.01996255,39812.0,39796.0,0.5]
[1610169733616,0.52775574,39807.0,39796.0,0.50023431]
[1610169733815,0.52775574,39807.0,39806.0,0.13632608]
[1610169734018,0.64500223,39810.0,39806.0,0.13632608]
[1610169734216,0.5277692,39807.0,39806.0,0.13632608]
[1610169734417,0.5277692,39807.0,39806.0,0.13656038]
[1610169734816,0.5277692,39807.0,39806.0,0.13632608]
[1610169735217,0.5277692,39807.0,39806.0,0.13656039]
[1610169735517,0.5162692,39807.0,39806.0,0.13656039]
[1610169735717,0.65259528,39807.0,39806.0,0.13632608]
[1610169735919,1.2984167,39807.0,39806.0,0.13632608]
[1610169736318,1.6668323,39807.0,39806.0,0.13632608]
[1610169736718,1.53050622,39807.0,39806.0,0.13656039]
[1610169737118,0.8846848,39807.0,39806.0,0.13656039]
[1610169737519,0.5162692,39807.0,39806.0,0.13656039]
[1610169737920,0.13632608,39807.0,39806.0,0.13656039]
[1610169738419,0.64677396,39811.0,39806.0,0.61916039]
[1610169738618,0.64677396,39811.0,39806.0,0.13656039]
[1610169738819,0.63467396,39811.0,39810.0,3.9665]
[1610169739219,0.11954,39813.0,39810.0,4.4665]
[1610169739422,0.55247059,39820.0,39810.0,4.46673426]
[1610169739619,0.55247059,39820.0,39811.0,0.50023423]
[1610169739820,0.55247059,39820.0,39819.0,0.13632608]
[1610169740020,0.73646366,39821.0,39819.0,0.13632608]
[1610169740219,0.73646366,39821.0,39819.0,0.13655785]
[1610169740421,0.73655292,39823.0,39820.0,0.00023177]
[1610169740621,0.73678904,39822.0,39820.0,3.63933177]
[1610169741021,0.73678904,39822.0,39821.0,0.00023177]
[1610169741421,0.73695149,39823.0,39821.0,0.00023177]
[1610169741821,0.36826782,39822.0,39821.0,0.00023177]
[1610169742423,0.36826579,39824.0,39821.0,0.00023177]
[1610169743824,0.36826579,39824.0,39823.0,0.13632608]
[1610169744427,0.36826579,39824.0,39823.0,0.13655785]
[1610169744827,0.35676579,39824.0,39823.0,0.13655785]
[1610169745628,0.08751,39825.0,39823.0,0.13655785]
[1610169745829,0.08751,39825.0,39824.0,2.8611]
[1610169746028,0.11549,39836.0,39824.0,2.86133172]
[1610169746229,0.36819217,39835.0,39824.0,2.86133172]
[1610169746529,0.36819217,39835.0,39825.0,0.00023172]
[1610169747829,0.35629217,39835.0,39834.0,0.13632608]
[1610169748030,0.11549,39836.0,39834.0,0.13632608]
[1610169748230,0.11549,39836.0,39835.0,0.5327]
[1610169748431,0.82647862,39838.0,39835.0,0.5327]
[1610169749432,1.19609726,39839.0,39835.0,0.53116588]
[1610169749634,0.36818906,39837.0,39835.0,0.53116588]
[1610169749933,0.48752906,39837.0,39835.0,0.53116588]
[1610169750133,0.11934,39837.0,39835.0,0.53116588]
[1610169750334,0.36819324,39836.0,39835.0,0.53116588]
[1610169750934,0.35669324,39836.0,39835.0,0.53116588]
[1610169752537,0.35669324,39836.0,39834.0,0.13632608]
[1610169753137,0.35669324,39836.0,39835.0,0.5]
[1610169753339,0.35669324,39836.0,39834.0,0.13632608]
[1610169753939,0.34459324,39836.0,39834.0,0.13632608]
[1610169754342,0.34459324,39836.0,39835.0,0.5]
[1610169754740,0.34459324,39836.0,39835.0,0.50023163]
[1610169754941,0.36806198,39845.0,39835.0,0.50023163]
[1610169755343,0.8301878,39855.0,39835.0,0.50023163]
[1610169755542,0.8301878,39855.0,39851.0,3.0917]
[1610169755743,0.83046542,39859.0,39851.0,3.0917]
[1610169755943,0.83046542,39859.0,39858.0,0.13632608]
[1610169756144,0.83071478,39860.0,39858.0,0.13632608]
[1610169756546,0.44497893,39859.0,39858.0,0.13632608]
[1610169756947,1.2650474,39859.0,39858.0,0.13632608]
[1610169757146,1.2528474,39859.0,39858.0,0.13632608]
[1610169757545,1.62084236,39859.0,39858.0,0.13632608]
[1610169759046,2.27282854,39859.0,39858.0,0.13632608]
[1610169759448,2.27282854,39859.0,39858.0,0.13479293]
[1610169759646,1.53129007,39859.0,39858.0,0.13479293]
[1610169760346,1.50749007,39859.0,39858.0,0.13479293]
[1610169760947,2.04072609,39859.0,39858.0,0.13479293]
[1610169761548,2.04072609,39859.0,39858.0,2.96209293]
[1610169761749,1.38873991,39859.0,39858.0,2.96209293]
[1610169762349,1.38873991,39859.0,39858.0,3.46209293]
[1610169762548,0.48750893,39859.0,39858.0,3.46209293]
[1610169762748,0.48750893,39859.0,39858.0,0.63479293]
[1610169762949,0.00756135,39861.0,39858.0,0.63479293]
[1610169763350,0.00736919,39864.0,39859.0,0.5]
[1610169763750,0.53445515,39870.0,39867.0,3.8802]
[1610169763949,0.53445515,39870.0,39869.0,0.13632608]
[1610169764151,0.53495562,39874.0,39869.0,0.13632608]
[1610169764349,0.53495562,39874.0,39869.0,0.63632608]
[1610169764553,0.53432463,39875.0,39870.0,0.5]
[1610169764951,0.65231062,39876.0,39871.0,0.5]
[1610169765351,0.11794,39876.0,39870.0,0.5]
[1610169765650,0.11794,39876.0,39872.0,0.5]
[1610169765852,0.11794,39876.0,39871.0,0.5]
[1610169766053,0.11794,39876.0,39875.0,0.13632608]
[1610169766454,0.10644,39876.0,39875.0,0.13632608]
[1610169767456,0.10644,39876.0,39875.0,0.63632608]
[1610169767857,0.10644,39876.0,39875.0,0.13632608]
[1610169768258,0.53350637,39882.0,39875.0,0.13632608]
[1610169768660,0.53239583,39878.0,39875.0,0.13632608]
[1610169769060,0.53223353,39877.0,39875.0,0.13632608]
[1610169769361,0.53147334,39876.0,39875.0,0.13632608]
[1610169769563,0.63305334,39876.0,39875.0,0.13632608]
[1610169769764,1.65019278,39876.0,39875.0,0.13632608]
[1610169769962,1.78651886,39876.0,39869.0,0.13632608]
[1610169770163,2.52356783,39876.0,39869.0,0.13632608]
[1610169770563,0.64801632,39870.0,39869.0,0.13632608]
[1610169771064,0.64801632,39870.0,39869.0,0.1347931]
[1610169772067,0.13632608,39870.0,39869.0,0.1347931]
[1610169772265,0.50424583,39870.0,39869.0,0.1347931]
[1610169772667,0.49244583,39870.0,39869.0,0.1347931]
[1610169772866,1.14017768,39870.0,39869.0,0.1347931]
[1610169774570,0.36791975,39870.0,39869.0,0.1347931]
[1610169775370,0.64828071,39874.0,39869.0,0.1347931]
[1610169775669,0.63648071,39874.0,39869.0,0.1347931]
[1610169775870,0.36787678,39873.0,39869.0,0.1347931]
[1610169776270,0.63648071,39874.0,39869.0,0.1347931]
[1610169776670,0.36791221,39872.0,39869.0,0.1347931]
[1610169776870,0.36792403,39873.0,39869.0,0.1347931]
[1610169777270,0.73612259,39875.0,39869.0,0.1347931]
[1610169777271,0.7360975,39874.0,39869.0,0.1347931]
[1610169778074,1.10394189,39875.0,39873.0,0.13632608]
[1610169778474,0.36793978,39875.0,39873.0,0.13632608]
[1610169778673,0.35603978,39875.0,39873.0,0.13632608]
[1610169779073,0.36789767,39874.0,39873.0,0.13632608]
[1610169779474,0.36789706,39875.0,39873.0,0.13632608]
[1610169779676,0.36789706,39875.0,39866.0,4.0866]
[1610169779876,0.00030682,39874.0,39866.0,4.0866]
[1610169780075,0.00030682,39874.0,39869.0,0.13632608]
[1610169780275,0.73548348,39873.0,39869.0,0.13632608]
[1610169780674,0.73571677,39872.0,39869.0,0.13632608]
[1610169781076,1.10311285,39871.0,39869.0,0.05966306]
[1610169781278,1.10341973,39871.0,39869.0,0.05966306]
[1610169781475,0.00030688,39870.0,39857.0,4.0031]
[1610169781676,0.36829503,39870.0,39857.0,4.00156672]
[1610169781877,0.72373722,39871.0,39857.0,4.00156672]
[1610169782077,0.72373722,39871.0,39862.0,0.13632608]
[1610169783379,0.36798759,39874.0,39862.0,0.13632608]
[1610169783779,0.0003069,39873.0,39862.0,0.13632608]
[1610169783980,0.13632608,39863.0,39862.0,0.13632608]
[1610169784380,0.23199298,39863.0,39862.0,0.13632608]
[1610169784581,0.59998505,39863.0,39862.0,0.13632608]
[1610169784981,0.21999298,39863.0,39862.0,0.13632608]
[1610169785384,0.58800387,39863.0,39862.0,0.13632608]
[1610169786884,0.58800387,39863.0,39844.0,3.2148]
[1610169787286,0.00030693,39862.0,39844.0,3.2148]
[1610169787489,0.36836685,39862.0,39844.0,3.2148]
[1610169787789,0.36809002,39861.0,39831.0,0.5]
[1610169787986,0.13632608,39832.0,39831.0,0.13632608]
[1610169790687,0.13632608,39832.0,39817.0,0.5]
[1610169791088,0.12452608,39832.0,39814.0,3.494]
[1610169791490,0.56825958,39832.0,39814.0,3.494]
[1610169791889,0.443803,39829.0,39814.0,3.494]
[1610169792089,0.443803,39829.0,39822.0,0.13632608]
[1610169792290,0.44352859,39827.0,39822.0,0.13632608]
[1610169792492,0.54431859,39827.0,39822.0,0.13632608]
[1610169792692,0.44355567,39825.0,39782.0,0.5]
[1610169792890,0.44355567,39825.0,39800.0,0.5]
[1610169793290,0.44355567,39825.0,39795.0,0.07974]
[1610169793491,0.44338652,39823.0,39797.0,0.5]
[1610169793891,0.44401923,39822.0,39798.0,0.00023184]
[1610169794091,0.43211923,39822.0,39805.0,0.13632608]
[1610169794291,3.84879,39827.0,39805.0,0.13632608]
[1610169794490,0.36833068,39826.0,39805.0,0.13632608]
[1610169794891,0.36833068,39826.0,39807.0,3.584]
[1610169794892,0.53502143,39823.0,39807.0,3.584]
[1610169795293,0.53510805,39824.0,39807.0,3.584]
[1610169795493,0.53510805,39824.0,39808.0,0.5]
[1610169795895,0.10079,39827.0,39807.0,3.584]
[1610169796094,0.10079,39827.0,39820.0,0.13632608]
[1610169796295,0.63647389,39827.0,39820.0,0.13632608]
[1610169796694,0.10079,39827.0,39820.0,0.13632608]
[1610169797296,0.07699,39827.0,39820.0,0.13632608]
[1610169797497,0.53533059,39827.0,39820.0,0.13632608]
[1610169797899,0.53445518,39826.0,39820.0,0.13632608]
[1610169798099,0.13632608,39821.0,39820.0,0.13632608]
[1610169798500,0.53394379,39825.0,39820.0,0.13632608]
[1610169798702,0.53429739,39828.0,39820.0,0.13632608]
[1610169799202,0.53473386,39829.0,39820.0,0.13632608]
[1610169799604,0.53488577,39830.0,39820.0,0.13632608]
[1610169800205,0.53488577,39830.0,39829.0,0.13632608]
[1610169800404,0.65371626,39833.0,39829.0,0.13632608]
[1610169800405,0.535045,39833.0,39829.0,0.13632608]
[1610169801206,0.36820956,39834.0,39829.0,0.13632608]
[1610169801508,1.02507117,39834.0,39829.0,0.13632608]
[1610169802007,0.65686161,39834.0,39829.0,0.13632608]
[1610169802207,0.13632608,39830.0,39829.0,0.13632608]
[1610169803708,0.12342608,39830.0,39829.0,0.13632608]
[1610169804609,0.49164655,39830.0,39829.0,0.13632608]
[1610169805009,1.0257694,39833.0,39829.0,0.13632608]
[1610169805209,1.0257694,39833.0,39830.0,3.1441]
[1610169805413,0.65753492,39834.0,39830.0,3.1441]
[1610169805610,0.65753492,39834.0,39830.0,3.6441]
[1610169805810,0.36815814,39834.0,39830.0,3.6441]
[1610169806211,0.11473,39836.0,39830.0,3.6441]
[1610169806212,0.11473,39836.0,39833.0,0.13632608]
[1610169806410,0.65932463,39841.0,39833.0,0.13632608]
[1610169806610,0.6600378,39845.0,39833.0,0.13632608]
[1610169806810,0.6484378,39845.0,39833.0,0.13632608]
[1610169807014,0.66095974,39848.0,39833.0,0.13632608]
[1610169807415,0.75130853,39854.0,39833.0,0.13632608]
[1610169807614,0.5521031,39855.0,39833.0,0.13632608]
[1610169807615,0.36802525,39855.0,39833.0,0.13632608]
[1610169808019,0.36802525,39855.0,39834.0,0.00023258]
[1610169808217,0.36802525,39855.0,39854.0,0.13632608]
[1610169808821,0.36802525,39855.0,39854.0,0.13479269]
[1610169809420,0.36797611,39856.0,39854.0,0.13479269]
[1610169809819,0.35605113,39862.0,39855.0,0.5]
[1610169810019,0.35605113,39862.0,39856.0,0.9436]
[1610169810221,0.36791917,39861.0,39856.0,0.9436]
[1610169810622,0.36791028,39862.0,39856.0,0.4436]
[1610169810820,0.36791028,39862.0,39857.0,0.5]
[1610169811021,0.09536,39863.0,39860.0,3.2208]
[1610169811221,0.75706931,39869.0,39860.0,3.2208]
[1610169811622,0.75706931,39869.0,39860.0,0.5]
[1610169812022,0.75706931,39869.0,39850.0,0.5]
[1610169812222,0.75706931,39869.0,39868.0,0.13632608]
[1610169812424,0.13632608,39871.0,39849.0,4.4101]
[1610169812622,0.75642743,39866.0,39849.0,4.4101]
[1610169812822,0.75642743,39866.0,39850.0,0.50023251]
[1610169813023,0.87008743,39866.0,39849.0,4.4101]
[1610169813425,0.36798659,39865.0,39849.0,4.4101]
[1610169814026,0.36798659,39865.0,39849.0,3.9101]
[1610169814227,0.36798659,39865.0,39864.0,0.13632608]
[1610169815229,0.36798659,39865.0,39844.0,0.5]
[1610169815430,0.36798659,39865.0,39839.0,0.5]
[1610169815630,3.4073,39841.0,39839.0,0.5]
[1610169815830,3.4073,39841.0,39836.0,0.5]
[1610169816033,3.4905,39841.0,39818.0,0.5]
[1610169816430,3.4905,39841.0,39835.0,0.13632608]
[1610169816431,3.4782,39841.0,39835.0,0.13632608]
[1610169816832,0.36816759,39840.0,39835.0,0.13632608]
[1610169817232,0.92043102,39840.0,39835.0,0.13632608]
[1610169817432,0.92043102,39840.0,39816.0,0.5]
[1610169817633,0.92043102,39840.0,39811.0,3.0538]
[1610169817833,0.92043102,39840.0,39817.0,0.00023271]
[1610169818034,0.92043102,39840.0,39812.0,0.00023273]
[1610169818035,3.5144,39827.0,39812.0,0.00023273]
[1610169818235,3.63907,39827.0,39797.0,3.9623]
[1610169818436,3.63907,39827.0,39808.0,0.13632608]
[1610169818639,3.63907,39827.0,39813.0,0.00023277]
[1610169818839,0.36829055,39826.0,39809.0,0.00023277]
[1610169819039,0.36829055,39826.0,39808.0,0.13632608]
[1610169819439,0.35629055,39826.0,39810.0,0.00023278]
[1610169819639,0.35629055,39826.0,39809.0,0.00023278]
[1610169819840,0.36830409,39825.0,39811.0,0.00023278]
[1610169820039,0.36830409,39825.0,39810.0,0.00023278]
[1610169820244,3.9255,39812.0,39810.0,0.00023278]
[1610169820440,3.9255,39812.0,39809.0,0.00023278]
[1610169820441,0.13632608,39811.0,39809.0,0.00023278]
[1610169820641,0.13632608,39811.0,39799.0,0.13632608]
[1610169821244,0.13632608,39811.0,39800.0,0.00023283]
[1610169821643,0.13632608,39811.0,39799.0,0.13632608]
[1610169822343,0.13632608,39800.0,39795.0,0.13632608]
[1610169822542,0.23410608,39800.0,39795.0,0.13632608]
[1610169822943,0.10958,39800.0,39795.0,0.13632608]
[1610169824346,0.10958,39800.0,39799.0,0.13632608]
[1610169825443,0.09808,39800.0,39799.0,0.13632608]
[1610169826445,0.10026,39815.0,39799.0,0.13632608]
[1610169826845,3.677,39808.0,39799.0,0.13632608]
[1610169827445,3.677,39808.0,39781.0,0.12472]
[1610169827643,3.677,39808.0,39779.0,3.278]
[1610169827845,0.0149378,39804.0,39779.0,3.278]
[1610169828045,0.0149378,39804.0,39780.0,0.00023288]
[1610169828246,0.01492994,39803.0,39780.0,0.00023288]
[1610169828447,0.01492994,39803.0,39796.0,0.13632608]
[1610169828646,0.00292994,39803.0,39796.0,0.13632608]
[1610169829047,0.4438216,39807.0,39796.0,0.13632608]
[1610169829448,0.44405629,39808.0,39796.0,0.13632608]
[1610169829950,0.44428378,39807.0,39796.0,0.13632608]
[1610169830148,0.44428378,39807.0,39796.0,0.68942608]
[1610169830549,0.25071608,39809.0,39806.0,0.13632608]
[1610169830748,0.25071608,39809.0,39796.0,0.5531]
[1610169831650,0.23881608,39809.0,39782.0,0.12652]
[1610169831852,3.1841,39806.0,39782.0,0.12652]
[1610169832452,3.1841,39806.0,39791.0,0.13632608]
[1610169832653,0.44419025,39805.0,39791.0,0.13632608]
[1610169833052,0.44348549,39800.0,39791.0,0.13632608]
[1610169833352,0.52967549,39800.0,39791.0,0.13632608]
[1610169833553,0.08619,39800.0,39791.0,0.13632608]
[1610169833754,0.08619,39800.0,39774.0,0.09655]
[1610169833952,0.5016,39799.0,39773.0,3.5611]
[1610169834553,0.44324872,39798.0,39786.0,0.13632608]
[1610169834753,0.43174872,39798.0,39786.0,0.13632608]
[1610169835356,0.5016,39799.0,39786.0,0.13632608]
[1610169836455,0.13632608,39787.0,39786.0,0.13632608]
[1610169836656,0.13632608,39787.0,39769.0,0.58846]
[1610169836856,0.13632608,39787.0,39769.0,0.08846]
[1610169837057,3.57692608,39787.0,39769.0,0.08846]
[1610169837256,3.57692608,39787.0,39748.0,3.9253]
[1610169837656,0.13632608,39787.0,39750.0,0.61028]
[1610169837857,0.12442608,39787.0,39750.0,0.11028]
[1610169838056,2.8178,39764.0,39750.0,0.11028]
[1610169838457,0.13632608,39751.0,39750.0,0.11028]
[1610169839659,2.8178,39764.0,39750.0,0.11028]
[1610169840458,2.8178,39764.0,39754.0,0.13632608]
[1610169841058,2.8059,39764.0,39754.0,0.13632608]
[1610169841659,2.8059,39764.0,39750.0,0.11028]
[1610169842063,2.92845,39764.0,39736.0,0.5]
[1610169842258,2.92845,39764.0,39729.0,0.5]
[1610169842460,2.92845,39764.0,39746.0,0.13632608]
[1610169843060,0.12255,39764.0,39739.0,0.10384]
[1610169843262,2.9409,39743.0,39739.0,0.10384]
[1610169843461,0.10416,39753.0,39739.0,0.10384]
[1610169843662,0.10416,39753.0,39740.0,0.00023312]
[1610169843864,4.1166,39741.0,39740.0,0.00023312]
[1610169844262,0.12156,39743.0,39740.0,0.00023312]
[1610169844461,0.13632608,39741.0,39735.0,0.13632608]
[1610169844664,0.12156,39743.0,39735.0,0.13632608]
[1610169846464,0.12156,39743.0,39742.0,0.13632608]
[1610169846662,0.13632608,39751.0,39742.0,0.13632608]
[1610169847063,0.12452608,39751.0,39742.0,0.13632608]
[1610169847864,0.10416,39753.0,39742.0,0.13632608]
[1610169848467,0.10416,39753.0,39752.0,0.13632608]
[1610169848767,4.2231,39755.0,39752.0,0.13632608]
[1610169848967,0.13632608,39758.0,39752.0,0.13632608]
[1610169849167,3.20393,39753.0,39729.0,0.08814]
[1610169849567,0.09363,39753.0,39724.0,0.5]
[1610169849769,3.0204,39748.0,39724.0,0.5]
[1610169850167,3.0084,39748.0,39724.0,0.5]
[1610169850568,3.0084,39748.0,39745.0,0.13632608]
[1610169851369,0.09363,39753.0,39724.0,0.5]
[1610169851570,2.9397,39729.0,39722.0,0.5]
[1610169851770,0.09363,39753.0,39721.0,0.11446]
[1610169851972,3.6765,39722.0,39682.0,3.184]
[1610169852171,0.08973,39727.0,39667.0,0.1556]
[1610169852374,2.9609,39704.0,39659.0,4.1697]
[1610169852572,0.08973,39727.0,39703.0,0.13632608]
[1610169853172,0.07783,39727.0,39703.0,0.13632608]
[1610169853574,3.0854,39725.0,39703.0,0.13632608]
[1610169854175,2.9135,39707.0,39703.0,0.13632608]
[1610169854375,2.9135,39707.0,39670.0,3.1407]
[1610169854576,2.9135,39707.0,39695.0,0.13632608]
[1610169854977,0.09214,39712.0,39695.0,0.13632608]
[1610169856177,0.08064,39712.0,39695.0,0.13632608]
[1610169856579,0.08064,39712.0,39711.0,0.13632608]
[1610169857378,0.08064,39712.0,39693.0,0.5]
[1610169857581,0.07783,39727.0,39696.0,0.5]
[1610169857779,3.5322,39732.0,39694.0,0.5]
[1610169857980,3.5322,39732.0,39691.0,0.5]
[1610169858380,3.5322,39732.0,39697.0,0.5]
[1610169858580,3.66852608,39732.0,39731.0,0.13632608]
[1610169858781,0.13632608,39732.0,39731.0,0.13632608]
[1610169858980,0.13632608,39732.0,39704.0,2.8559]
[1610169859180,0.13632608,39732.0,39698.0,0.1237]
[1610169859380,0.23915608,39732.0,39702.0,0.5]
[1610169859579,3.48725608,39732.0,39698.0,0.1237]
[1610169860580,0.11443,39732.0,39718.0,0.13632608]
[1610169861984,0.00030779,39731.0,39718.0,0.13632608]
[1610169862383,0.10253779,39732.0,39718.0,0.13632608]
[1610169862585,0.10253779,39732.0,39731.0,0.13632608]
[1610169862985,0.10284556,39732.0,39706.0,3.2277]
[1610169863384,0.00030777,39731.0,39706.0,3.2277]
[1610169863985,0.00030777,39731.0,39702.0,0.5]
[1610169864185,3.6188,39728.0,39702.0,0.5]
[1610169864386,3.6188,39728.0,39708.0,0.5]
[1610169864585,0.00030782,39727.0,39710.0,0.13632608]
[1610169865586,3.60720782,39728.0,39710.0,0.13632608]
[1610169866389,3.60720782,39728.0,39690.0,0.1221]
[1610169866589,3.60720782,39728.0,39704.0,0.13632608]
[1610169866789,0.09235787,39727.0,39704.0,0.13632608]
[1610169867788,0.03078596,39727.0,39705.0,0.5]
[1610169867993,0.03078596,39727.0,39705.0,0.59689]
[1610169868189,0.03108335,39726.0,39706.0,0.5]
[1610169868390,1.0,39728.0,39707.0,0.5]